fUSD/lending_fUSD_20260309
["ID","MTS","AMOUNT","RATE_DAILY","PERIOD"]
[408058123,1773084638615,-500.0,0.00019499,2]
[408058124,1773084638624,-500.0,0.00019499,2]
[408058126,1773084638633,-500.0,0.00019499,2]
[408058128,1773084638642,-500.0,0.00019499,2]
[408058130,1773084638653,-500.0,0.00019499,2]
[408058133,1773084638663,-500.0,0.00019499,2]
[408058134,1773084638672,-500.0,0.00019499,2]
[408058136,1773084638681,-500.0,0.00019499,2]
[408058138,1773084638691,-500.0,0.00019499,2]
[408058140,1773084638700,-500.0,0.00019499,2]
[408058142,1773084638711,-404.74,0.00019499,2]
[408058144,1773084638722,-500.0,0.00019499,2]
[408058146,1773084638731,-500.0,0.00019499,2]
[408058148,1773084638740,-500.0,0.00019499,2]
[408058150,1773084638750,-500.0,0.00019499,2]
[408058152,1773084638760,-500.0,0.00019499,2]
[408058154,1773084638769,-500.0,0.00019499,2]
[408058156,1773084638779,-500.0,0.00019499,2]
[408058158,1773084638792,-289.3873478,0.00019499,2]
[408058160,1773084638801,-500.0,0.00019499,2]
[408058162,1773084638811,-386.97,0.00019499,2]
[408058164,1773084638820,-500.0,0.00019499,2]
[408058166,1773084638829,-500.0,0.00019499,2]
[408058168,1773084638839,-500.0,0.00019499,2]
[408058170,1773084638848,-503.55073109,0.00019499,2]
[408058172,1773084638858,-500.0,0.00019499,2]
[408058174,1773084638867,-500.0,0.00019499,2]
[408058176,1773084638877,-500.0,0.00019499,2]
[408058178,1773084638886,-212357.40002257,0.000195,2]
[408058181,1773084638905,-410.03200002,0.000195,2]
[408058183,1773084638917,-11629.93302355,0.000195,2]
[408058185,1773084638927,-3216.5170958,0.000195,2]
[408058187,1773084638938,-640.93868497,0.000195,2]
[408058189,1773084638958,-383.909501,0.000195,2]
[408058190,1773084638970,-453.00898369,0.000195,2]
[408058196,1773084640452,-4783.16358,0.000195,2]
[408058198,1773084640718,-3950.85858517,0.000195,2]
[408058199,1773084640998,-269022.51932323,0.000195,2]
[408058200,1773084641008,-1438.1706205,0.00019501,2]
[408058201,1773084641018,-1213.40196974,0.00019535,2]
[408058202,1773084641027,-8626.76571834,0.00019538,2]
[408058203,1773084641036,-1000.0,0.00019547,2]
[408058204,1773084641046,-174.61919142,0.00019547,2]
[408058205,1773084641055,-168.0,0.00019565,2]
[408058207,1773084641065,-1438.1706205,0.00019568,2]
[408058208,1773084641074,-1213.40196974,0.00019587,2]
[408058209,1773084641088,-8626.76571834,0.0001959,2]
[408058210,1773084641097,-437.0,0.00019618,2]
[408058211,1773084641106,-500.0,0.00019618,2]
[408058212,1773084641119,-564.0,0.00019618,2]
[408058213,1773084641128,-150.0,0.00019618,2]
[408058214,1773084641138,-500.0,0.00019618,2]
[408058215,1773084641147,-500.0,0.00019618,2]
[408058216,1773084641157,-150.0,0.00019618,2]
[408058217,1773084641166,-150.0,0.00019618,2]
[408058218,1773084641176,-150.0,0.00019618,2]
[408058219,1773084641185,-500.0,0.00019618,2]
[408058220,1773084641195,-738.0,0.00019618,2]
[408058221,1773084641204,-250.0,0.00019618,2]
[408058222,1773084641214,-500.0,0.00019618,2]
[408058223,1773084641224,-168.0,0.00019627,2]
[408058224,1773084641234,-1438.1706205,0.00019634,2]
[408058225,1773084641251,-1213.40196974,0.00019639,2]
[408058226,1773084641261,-8626.76571834,0.00019642,2]
[408058227,1773084641273,-242.0,0.00019663,2]
[408058228,1773084641286,-885.0,0.0001967,5]
[408058229,1773084641296,-437.0,0.00019673,2]
[408058230,1773084641306,-536.41553629,0.00019673,2]
[408058231,1773084641316,-564.0,0.00019673,2]
[408058232,1773084641325,-150.0,0.00019673,2]
[408058233,1773084641335,-500.0,0.00019673,2]
[408058234,1773084641344,-500.0,0.00019673,2]
[408058235,1773084641354,-150.0,0.00019673,2]
[408058236,1773084641366,-500.0,0.00019673,2]
[408058237,1773084641377,-738.0,0.00019673,2]
[408058238,1773084641386,-500.0,0.00019673,2]
[408058239,1773084641396,-1213.40196974,0.00019692,2]
[408058240,1773084641405,-8626.76571834,0.00019693,2]
[408058241,1773084641415,-54197.817,0.000197,2]
[408058242,1773084641424,-1438.1706205,0.00019701,2]
[408058243,1773084641433,-172.87392778,0.00019717,2]
[408058244,1773084641443,-1000.0,0.00019722,2]
[408058245,1773084641452,-1000.0,0.00019726,2]
[408058246,1773084641462,-437.0,0.00019728,2]
[408058247,1773084641477,-564.0,0.00019728,2]
[408058248,1773084641490,-251.70358089,0.00019728,2]
[408058249,1773084641499,-500.0,0.00019728,2]
[408058250,1773084641509,-500.0,0.00019728,2]
[408058251,1773084641519,-150.0,0.00019728,2]
[408058252,1773084641528,-500.0,0.00019728,2]
[408058253,1773084641538,-738.0,0.00019728,2]
[408058254,1773084641547,-500.0,0.00019728,2]
[408058255,1773084641556,-2000.0,0.00019728,2]
[408058256,1773084641565,-1213.40196974,0.00019744,2]
[408058257,1773084641575,-8626.76571834,0.00019745,2]
[408058258,1773084641585,-217.94309222,0.00019748,2]
[408058259,1773084641594,-479.77,0.00019762,2]
[408058260,1773084641603,-437.0,0.00019782,2]
[408058261,1773084641612,-564.0,0.00019782,2]
[408058262,1773084641622,-500.0,0.00019782,2]
[408058263,1773084641632,-500.0,0.00019782,2]
[408058264,1773084641641,-250.0,0.00019782,2]
[408058265,1773084641651,-500.0,0.00019782,2]
[408058266,1773084641660,-738.0,0.00019782,2]
[408058267,1773084641670,-500.0,0.00019782,2]
[408058268,1773084641680,-1000.0,0.00019786,2]
[408058269,1773084641689,-1213.40196974,0.00019796,2]
[408058270,1773084641699,-8626.76571834,0.00019797,2]
[408058271,1773084641708,-3179.6691094,0.00019798,2]
[408058272,1773084641722,-756.67996691,0.00019798,2]
[408058273,1773084641732,-168.0,0.00019813,2]
[408058274,1773084641742,-250.0,0.0001982,2]
[408058275,1773084641751,-500.0,0.00019821,2]
[408058276,1773084641762,-500.0,0.00019821,2]
[408058277,1773084641772,-500.0,0.00019821,2]
[408058278,1773084641781,-500.0,0.00019821,2]
[408058279,1773084641793,-500.0,0.00019821,2]
[408058280,1773084641802,-500.0,0.00019821,2]
[408058281,1773084641812,-500.0,0.00019821,2]
[408058282,1773084641822,-500.0,0.00019821,2]
[408058283,1773084641832,-500.0,0.00019821,2]
[408058284,1773084641841,-500.0,0.00019821,2]
[408058285,1773084641851,-380.39,0.00019822,2]
[408058286,1773084641861,-437.0,0.00019837,2]
[408058287,1773084641871,-564.0,0.00019837,2]
[408058288,1773084641884,-500.0,0.00019837,2]
[408058289,1773084641893,-500.0,0.00019837,2]
[408058290,1773084641902,-500.0,0.00019837,2]
[408058291,1773084641912,-738.0,0.00019837,2]
[408058292,1773084641921,-500.0,0.00019837,2]
[408058293,1773084641931,-173.515,0.0001984,2]
[408058294,1773084641940,-2763.538,0.00019841,2]
[408058295,1773084641949,-1213.40196974,0.00019848,2]
[408058296,1773084641960,-8626.76571834,0.00019848,2]
[408058297,1773084641970,-500.0,0.00019852,2]
[408058298,1773084641980,-500.0,0.00019852,2]
[408058299,1773084641989,-250.0,0.00019853,2]
[408058300,1773084641999,-151.0,0.00019886,2]
[408058301,1773084642008,-5800.0,0.00019892,2]
[408058302,1773084642017,-437.0,0.00019892,2]
[408058303,1773084642027,-564.0,0.00019892,2]
[408058304,1773084642037,-500.0,0.00019892,2]
[408058305,1773084642046,-500.0,0.00019892,2]
[408058306,1773084642056,-500.0,0.00019892,2]
[408058307,1773084642065,-738.0,0.00019892,2]
[408058308,1773084642074,-626.58507519,0.00019892,2]
[408058309,1773084642084,-1000.0,0.00019898,2]
[408058310,1773084642348,-250.0,0.000199,2]
[408058311,1773084642367,-5800.0,0.000199,2]
[408058312,1773084642376,-1510.23111655,0.000199,2]
[408058313,1773084642385,-1213.40196974,0.000199,2]
[408058314,1773084642395,-939.76674134,0.000199,2]
[408058315,1773084642404,-1744.43292007,0.000199,2]
[408058316,1773084642413,-8626.76571834,0.000199,2]
[408058317,1773084642422,-250.0,0.00019924,2]
[408058318,1773084642431,-151.0,0.00019924,2]
[408058319,1773084642440,-1619.12,0.00019932,2]
[408058320,1773084642449,-167.67444217,0.0001994,2]
[408058321,1773084642458,-530.42,0.00019944,2]
[408058322,1773084642467,-539.95,0.00019944,2]
[408058323,1773084642477,-500.0,0.00019944,2]
[408058324,1773084642486,-500.0,0.00019944,2]
[408058325,1773084642498,-500.0,0.00019944,2]
[408058326,1773084642507,-500.0,0.00019944,2]
[408058327,1773084642516,-500.0,0.00019944,2]
[408058328,1773084642526,-250.0,0.00019945,2]
[408058329,1773084642535,-437.0,0.00019947,2]
[408058330,1773084642544,-564.0,0.00019947,2]
[408058331,1773084642553,-500.0,0.00019947,2]
[408058332,1773084642563,-500.0,0.00019947,2]
[408058333,1773084642572,-500.0,0.00019947,2]
[408058334,1773084642581,-738.0,0.00019947,2]
[408058335,1773084642590,-33285.889797,0.00019952,2]
[408058336,1773084642599,-150.0,0.00019952,3]
[408058337,1773084642608,-179.0,0.00019953,2]
[408058338,1773084642619,-263.28611024,0.00019959,2]
[408058339,1773084642629,-500.0,0.00019959,2]
[408058340,1773084642638,-471.24818002,0.00019959,2]
[408058341,1773084642647,-500.0,0.00019959,2]
[408058342,1773084642656,-500.0,0.00019959,2]
[408058343,1773084642666,-333.53519794,0.00019959,2]
[408058344,1773084642675,-500.0,0.00019959,2]
[408058345,1773084642685,-500.0,0.00019959,2]
[408058346,1773084642694,-229.47713247,0.00019959,2]
[408058347,1773084642704,-151.0,0.00019962,2]
[408058348,1773084642714,-1279.0,0.00019963,2]
[408058349,1773084642725,-922.0,0.00019963,2]
[408058350,1773084642735,-1213.0,0.00019963,2]
[408058351,1773084642745,-1342.0,0.00019963,2]
[408058352,1773084642754,-250.0,0.00019963,2]
[408058353,1773084642767,-151.6129016,0.00019965,2]
[408058354,1773084642776,-3045.2265316,0.00019965,2]
[408058355,1773084642786,-400.0,0.0001997,2]
[408058356,1773084642799,-400.0,0.0001997,2]
[408058357,1773084642809,-400.0,0.0001997,2]
[408058358,1773084642819,-541.01514806,0.0001997,2]
[408058359,1773084642828,-2427.0,0.00019972,2]
[408058360,1773084642839,-163049.5147616,0.00019972,2]
[408058361,1773084642849,-861.35316821,0.00019972,2]
[408058362,1773084642859,-310.0993093,0.00019973,2]
[408058363,1773084642871,-500.0,0.00019973,2]
[408058364,1773084642881,-500.0,0.00019973,2]
[408058365,1773084642891,-500.0,0.00019973,2]
[408058366,1773084642901,-500.0,0.00019973,2]
[408058367,1773084642910,-500.0,0.00019973,2]
[408058368,1773084642920,-500.0,0.00019973,2]
[408058369,1773084642929,-500.0,0.00019973,2]
[408058370,1773084642938,-500.0,0.00019973,2]
[408058371,1773084642948,-163.7437981,0.00019973,2]
[408058372,1773084642956,-500.0,0.00019973,2]
[408058373,1773084642966,-168.0,0.00019976,2]
[408058374,1773084642975,-151.0,0.00019982,2]
[408058375,1773084642984,-6861.3956966,0.00019985,2]
[408058376,1773084642994,-97726.9665727,0.00019985,2]
[408058377,1773084643004,-1242.12037372,0.00019988,2]
[408058380,1773084643013,-1242.12037372,0.0001999,2]
[408058382,1773084643022,-1242.12037372,0.0001999,2]
[408058384,1773084643032,-500.0,0.00019998,2]
[408058386,1773084643041,-500.0,0.00019998,2]
[408058388,1773084643051,-500.0,0.00019998,2]
[408058391,1773084643060,-500.0,0.00019998,2]
[408058393,1773084643070,-500.0,0.00019998,2]
[408058395,1773084643080,-300.0,0.00019999,2]
[408058396,1773084643090,-300.0,0.00019999,2]
[408058397,1773084643100,-300.0,0.00019999,2]
[408058398,1773084643109,-666.0,0.00019999,2]
[408058399,1773084643125,-500.0,0.00019999,2]
[408058400,1773084643134,-500.0,0.00019999,2]
[408058401,1773084643143,-500.0,0.00019999,2]
[408058402,1773084643153,-500.0,0.00019999,2]
[408058403,1773084643163,-500.0,0.00019999,2]
[408058404,1773084643172,-500.0,0.00019999,2]
[408058405,1773084643181,-500.0,0.00019999,2]
[408058406,1773084643191,-500.0,0.00019999,2]
[408058407,1773084643200,-551.6,0.00019999,2]
[408058408,1773084643210,-177.14945896,0.00019999,2]
[408058409,1773084643219,-500.0,0.00019999,2]
[408058411,1773084643228,-500.0,0.00019999,2]
[408058413,1773084643238,-500.0,0.00019999,2]
[408058415,1773084643248,-500.0,0.00019999,2]
[408058417,1773084643257,-500.0,0.00019999,2]
[408058419,1773084643267,-500.0,0.00019999,2]
[408058421,1773084643277,-500.0,0.00019999,2]
[408058423,1773084643286,-500.0,0.00019999,2]
[408058425,1773084643296,-602.40025463,0.00019999,2]
[408058426,1773084643306,-500.0,0.00019999,2]
[408058427,1773084643315,-500.0,0.00019999,2]
[408058428,1773084643325,-500.0,0.00019999,2]
[408058429,1773084643334,-500.0,0.00019999,2]
[408058430,1773084643344,-500.0,0.00019999,2]
[408058431,1773084643354,-530.42,0.00019999,2]
[408058432,1773084643367,-530.42,0.00019999,2]
[408058433,1773084643377,-530.42,0.00019999,2]
[408058434,1773084643386,-530.42,0.00019999,2]
[408058435,1773084643395,-530.42,0.00019999,2]
[408058436,1773084643405,-530.42,0.00019999,2]
[408058437,1773084643414,-530.42,0.00019999,2]
[408058438,1773084643424,-530.42,0.00019999,2]
[408058439,1773084643434,-530.42,0.00019999,2]
[408058440,1773084643443,-530.42,0.00019999,2]
[408058441,1773084643453,-530.42,0.00019999,2]
[408058442,1773084643464,-530.42,0.00019999,2]
[408058443,1773084643475,-530.42,0.00019999,2]
[408058444,1773084643484,-530.42,0.00019999,2]
[408058445,1773084643493,-530.42,0.00019999,2]
[408058446,1773084643502,-530.42,0.00019999,2]
[408058447,1773084643511,-530.42,0.00019999,2]
[408058448,1773084643520,-530.42,0.00019999,2]
[408058449,1773084643529,-530.42,0.00019999,2]
[408058450,1773084643538,-530.42,0.00019999,2]
[408058451,1773084643548,-530.458378,0.00019999,2]
[408058452,1773084643557,-500.0,0.00019999,2]
[408058453,1773084643566,-500.0,0.00019999,2]
[408058454,1773084643576,-500.0,0.00019999,2]
[408058455,1773084643584,-500.0,0.00019999,2]
[408058456,1773084643594,-500.0,0.00019999,2]
[408058457,1773084643603,-500.0,0.00019999,2]
[408058458,1773084643615,-500.0,0.00019999,2]
[408058459,1773084643623,-500.0,0.00019999,2]
[408058460,1773084643632,-500.0,0.00019999,2]
[408058461,1773084643642,-546.33,0.00019999,2]
[408058462,1773084643652,-500.0,0.00019999,2]
[408058463,1773084643662,-500.0,0.00019999,2]
[408058464,1773084643671,-500.0,0.00019999,2]
[408058465,1773084643682,-500.0,0.00019999,2]
[408058466,1773084643692,-500.0,0.00019999,2]
[408058467,1773084643701,-500.0,0.00019999,2]
[408058469,1773084643712,-500.0,0.00019999,2]
[408058471,1773084643725,-274.9282927,0.00019999,2]
[408058472,1773084643734,-539.95,0.00019999,2]
[408058474,1773084643743,-539.95,0.00019999,2]
[408058476,1773084643753,-539.95,0.00019999,2]
[408058478,1773084643765,-539.95,0.00019999,2]
[408058480,1773084643774,-539.95,0.00019999,2]
[408058482,1773084643784,-539.95,0.00019999,2]
[408058483,1773084643798,-539.95,0.00019999,2]
[408058485,1773084643807,-539.95,0.00019999,2]
[408058487,1773084643816,-539.95,0.00019999,2]
[408058489,1773084643825,-539.95,0.00019999,2]
[408058491,1773084643834,-539.95,0.00019999,2]
[408058493,1773084643843,-539.95,0.00019999,2]
[408058494,1773084643852,-539.95,0.00019999,2]
[408058496,1773084643861,-539.95,0.00019999,2]
[408058498,1773084643873,-539.95,0.00019999,2]
[408058500,1773084643882,-539.95,0.00019999,2]
[408058502,1773084643892,-539.95,0.00019999,2]
[408058503,1773084643901,-539.95,0.00019999,2]
[408058504,1773084643910,-539.95,0.00019999,2]
[408058505,1773084643919,-539.95,0.00019999,2]
[408058506,1773084643929,-540.14,0.00019999,2]
[408058507,1773084643939,-500.0,0.00019999,2]
[408058508,1773084643948,-500.0,0.00019999,2]
[408058509,1773084643957,-500.0,0.00019999,2]
[408058510,1773084643966,-500.0,0.00019999,2]
[408058511,1773084643975,-191.31621318,0.00019999,2]
[408058513,1773084643984,-500.0,0.00019999,2]
[408058514,1773084643993,-500.0,0.00019999,2]
[408058515,1773084644002,-201.56469632,0.00019999,2]
[408058516,1773084644011,-500.0,0.00019999,2]
[408058517,1773084644020,-275.18071975,0.00019999,2]
[408058518,1773084644029,-500.0,0.00019999,2]
[408058519,1773084644039,-500.0,0.00019999,2]
[408058520,1773084644047,-500.0,0.00019999,2]
[408058521,1773084644058,-500.0,0.00019999,2]
[408058522,1773084644068,-500.0,0.00019999,2]
[408058523,1773084644079,-198.73,0.00019999,2]
[408058524,1773084644089,-381.48117681,0.00019999,2]
[408058525,1773084644098,-500.0,0.00019999,2]
[408058526,1773084644108,-500.0,0.00019999,2]
[408058527,1773084644119,-500.0,0.00019999,2]
[408058528,1773084644128,-500.0,0.00019999,2]
[408058529,1773084644137,-500.0,0.00019999,2]
[408058530,1773084644146,-500.0,0.00019999,2]
[408058531,1773084644155,-500.0,0.00019999,2]
[408058532,1773084644165,-500.0,0.00019999,2]
[408058533,1773084644175,-500.0,0.00019999,2]
[408058534,1773084644185,-500.0,0.00019999,2]
[408058535,1773084644194,-500.0,0.00019999,2]
[408058536,1773084644204,-500.0,0.00019999,2]
[408058537,1773084644213,-500.0,0.00019999,2]
[408058538,1773084644223,-500.0,0.00019999,2]
[408058539,1773084644232,-500.0,0.00019999,2]
[408058540,1773084644241,-500.0,0.00019999,2]
[408058541,1773084644250,-484.28,0.00019999,2]
[408058542,1773084644259,-150.0,0.00019999,2]
[408058543,1773084644268,-185.15269691,0.00019999,2]
[408058544,1773084644278,-3546.0,0.0002,2]
[408058545,1773084644287,-139191.02159704,0.0002,2]
[408058546,1773084644530,-259.1015809,0.00019767,2]
[408058547,1773084644543,-1179.0690396,0.00019767,2]
[408058548,1773084644554,-1042.0,0.00019913,2]
[408058549,1773084644563,-4495.49067138,0.0002,2]
[408058550,1773084644576,-10742.12646714,0.0002,2]
[408058551,1773084644588,-20030.36061481,0.0002,2]
[408058552,1773084644600,-24165.73010354,0.0002,2]
[408058553,1773084644612,-1865.59448157,0.0002,2]
[408058554,1773084644630,-1016.49353724,0.0002,2]
[408058555,1773084644643,-1745.92473076,0.0002,2]
[408058556,1773084644655,-1822.4594168,0.0002,2]
[408058559,1773084646225,-5632.25459061,0.0002,2]
[408058560,1773084646240,-431.29501152,0.0002,2]
[408058561,1773084646280,-286.05158115,0.00019834,2]
[408058562,1773084646292,-879.98291939,0.00019834,2]
[408058563,1773084646303,-272.13611996,0.00019834,2]
[408058564,1773084646313,-57.25827753,0.0002,2]
[408058565,1773084646324,-6279.56526053,0.0002,2]
[408058566,1773084646336,-883.4800005,0.0002,2]
[408058567,1773084646351,-67130.25175437,0.0002,2]
[408058568,1773084646363,-2226.81779757,0.0002,2]
[408058569,1773084646376,-1141.75539225,0.0002,2]
[408058570,1773084646388,-5570.45453968,0.0002,2]
[408058571,1773084646400,-8995.41348923,0.0002,2]
[408058572,1773084646411,-4074.12,0.0002,2]
[408058581,1773085034343,195.61,0.00014,2]
[408058596,1773085831432,-1424.51542341,0.00014872,2]
[408058597,1773085831444,-575.75,0.00014872,2]
[408058598,1773085831455,-122.74457659,0.00014872,2]
[408058599,1773085831467,-289.41103785,0.00015436,2]
[408058600,1773085831476,-160.25,0.00016,3]
[408058601,1773085831486,-225.33344522,0.00016,2]
[408058602,1773085831496,-1212.12203422,0.0001617,2]
[408058603,1773085831508,-152.75488725,0.00016359,2]
[408058604,1773085831520,-147.24511275,0.00016359,2]
[408058605,1773085831530,-707.05701725,0.00016399,2]
[408058606,1773085831542,-492.94298275,0.00016399,2]
[408058634,1773085831552,-150.0,0.000164,2]
[408058635,1773085831841,-213.0,0.000164,2]
[408058636,1773085831851,-302.46,0.000164,2]
[408058637,1773085831861,-352.70329136,0.000164,2]
[408058638,1773085831871,-251.0,0.00016658,2]
[408058639,1773085831880,-310.73550931,0.00016915,2]
[408058640,1773085832699,-7506.46526469,0.00016915,2]
[408058641,1773085832708,-502.0,0.00017,2]
[408058642,1773085832718,-502.00003,0.00017,2]
[408058643,1773085832727,-152.0,0.00017039,3]
[408058644,1773085832736,-304.63,0.00017192,2]
[408058645,1773085832745,-2372.0282417,0.00017479,2]
[408058646,1773085832755,-1552.28,0.0001752,2]
[408058647,1773085832765,-550.0,0.00017588,2]
[408058648,1773085832775,-200.0,0.00017589,2]
[408058649,1773085832784,-500.0,0.00017589,2]
[408058650,1773085832793,-151.0,0.00017589,2]
[408058651,1773085832802,-500.0,0.00017589,2]
[408058652,1773085832811,-151.0,0.00017589,2]
[408058653,1773085832824,-500.0,0.00017589,2]
[408058654,1773085832834,-151.0,0.00017589,2]
[408058655,1773085832844,-229.55416592,0.00017589,2]
[408058656,1773085832854,-151.0,0.00017589,2]
[408058657,1773085832864,-151.0,0.00017589,2]
[408058658,1773085832873,-151.0,0.00017589,2]
[408058659,1773085832883,-192.51129899,0.00017589,2]
[408058660,1773085832892,-151.0,0.00017589,2]
[408058661,1773085832902,-151.0,0.00017589,2]
[408058662,1773085832911,-151.0,0.00017589,2]
[408058663,1773085832920,-151.0,0.00017589,2]
[408058664,1773085832931,-151.0,0.00017589,2]
[408058665,1773085832940,-151.0,0.00017589,2]
[408058666,1773085832949,-300.0,0.000176,2]
[408058667,1773085832959,-2500.0,0.000176,2]
[408058668,1773085832970,-2500.0,0.000176,2]
[408058669,1773085832980,-2500.0,0.000176,2]
[408058670,1773085832990,-195.0,0.000176,2]
[408058671,1773085832999,-195.0,0.000176,2]
[408058672,1773085833010,-310.48220019,0.000176,2]
[408058673,1773085833019,-533.9384128,0.000176,2]
[408058674,1773085833033,-195.0,0.000176,2]
[408058675,1773085833042,-195.0,0.000176,2]
[408058676,1773085833052,-179.49839145,0.000176,2]
[408058677,1773085833061,-165.26,0.00017807,2]
[408058678,1773085833071,-200.0,0.00017807,2]
[408058679,1773085833084,-400.50284531,0.000179,2]
[408058680,1773085833094,-150.0,0.00017906,2]
[408058681,1773085833103,-200.0,0.00018,4]
[408058682,1773085833112,-200.614972,0.00018,2]
[408058683,1773085833122,-1680.0,0.00018012,2]
[408058684,1773085833132,-400.50284532,0.00018256,2]
[408058685,1773085833142,-500.0,0.00018356,7]
[408058686,1773085833154,-500.0,0.00018356,7]
[408058687,1773085833164,-500.0,0.00018356,7]
[408058688,1773085833173,-2806.0,0.000184,2]
[408058689,1773085833183,-500.0,0.00018409,2]
[408058690,1773085833192,-152.0,0.00018431,4]
[408058691,1773085833202,-400.50284531,0.000186,2]
[408058692,1773085833211,-3240.0,0.00018672,2]
[408058693,1773085833224,-34.55707269,0.00018679,2]
[408058694,1773085833237,-654.44292731,0.00018679,2]
[408058695,1773085833247,-7224.28661688,0.0001871,2]
[408058696,1773085833259,-665.72995843,0.0001871,2]
[408058697,1773085833280,-415.1070999,0.0001871,2]
[408058702,1773085837431,-15111.20686856,0.0001871,2]
[408058703,1773085837440,-2806.0,0.0001872,2]
[408058704,1773085837450,-2806.0,0.0001872,2]
[408058705,1773085837460,-2806.0,0.0001872,2]
[408058706,1773085837470,-500.0,0.00018767,2]
[408058707,1773085837479,-3531.93444917,0.00018788,3]
[408058708,1773085837490,-165.26,0.0001892,2]
[408058709,1773085837499,-400.50284531,0.00018944,2]
[408058710,1773085837510,-1560.42,0.00018972,2]
[408058711,1773085837520,-274.28408397,0.00018999,2]
[408058712,1773085837530,-1000.0,0.00018999,2]
[408058713,1773085837539,-1500.0,0.00018999,2]
[408058714,1773085837548,-188.73068288,0.00018999,2]
[408058715,1773085837558,-1500.0,0.00018999,2]
[408058716,1773085837567,-1500.0,0.00018999,2]
[408058717,1773085837577,-578.20924308,0.00018999,2]
[408058718,1773085837586,-1500.0,0.00018999,2]
[408058719,1773085837597,-1500.0,0.00018999,2]
[408058720,1773085837606,-1256.08635712,0.00018999,2]
[408058721,1773085837615,-300.19989737,0.00018999,2]
[408058722,1773085837624,-9207.20483851,0.00018999,2]
[408058723,1773085837634,-174.61919141,0.00018999,2]
[408058724,1773085837643,-200.0,0.00018999,2]
[408058725,1773085837652,-693.3919763,0.00018999,2]
[408058726,1773085837662,-1500.0,0.00018999,2]
[408058727,1773085837671,-1500.0,0.00018999,2]
[408058728,1773085837680,-1500.0,0.00018999,2]
[408058729,1773085837689,-1000.0,0.00018999,2]
[408058730,1773085837699,-200.0,0.00019,5]
[408058731,1773085837709,-178.85741599,0.00019014,2]
[408058732,1773085837718,-157.00605747,0.00019014,2]
[408058733,1773085837728,-162.83308641,0.00019014,2]
[408058734,1773085837737,-169.95501067,0.00019014,2]
[408058735,1773085837747,-156.46651775,0.00019014,2]
[408058737,1773085837758,-502.0,0.00019032,3]
[408058739,1773085837768,-2806.0,0.0001904,2]
[408058741,1773085837778,-2806.0,0.0001904,2]
[408058743,1773085837787,-847.0,0.0001904,2]
[408058745,1773085837796,-852.0,0.0001904,2]
[408058747,1773085837806,-156.46651775,0.00019068,2]
[408058749,1773085837815,-162.83308641,0.00019096,2]
[408058751,1773085837824,-157.00605747,0.00019151,2]
[408058754,1773085837833,-156.46651775,0.00019151,2]
[408058755,1773085837842,-150.0,0.00019152,2]
[408058757,1773085837852,-1000.0,0.00019162,2]
[408058759,1773085837862,-697.48,0.00019178,2]
[408058761,1773085837871,-162.83308641,0.00019178,2]
[408058763,1773085837881,-1000.0,0.00019178,2]
[408058765,1773085837890,-1405.21389926,0.00019186,2]
[408058767,1773085837899,-160.0,0.00019188,30]
[408058768,1773085837909,-1000.0,0.00019189,2]